[Event "MČR družstev mladších žáků 2024"]
[Site "Harrachov, Czech Republic"]
[Date "2024.06.15"]
[Round "4.16"]
[White "Dvorak Vojtech"]
[Black "Sevcikova Terezie"]
[Result "1-0"]
[TimeControl "25+10"]
[WhiteFideId "23742089"]
[BlackFideId "23766425"]
[WhiteElo "1154"]
[BlackElo "1447"]

1. e4 {[%clk 00:25:18]} {[%emt 00:00:02]} d5 {[%clk 00:25:15]} {[%emt
00:00:05]} 2. exd5 {[%clk 00:25:01]} {[%emt 00:00:27]} Nf6 {[%clk 00:25:24]}
{[%emt 00:00:01]} 3. d4 {[%clk 00:24:37]} {[%emt 00:00:34]} Nxd5 {[%clk
00:25:32]} {[%emt 00:00:02]} 4. Bc4 {[%clk 00:24:42]} {[%emt 00:00:05]} Nc6
{[%clk 00:25:40]} {[%emt 00:00:01]} 5. Nf3 {[%clk 00:24:40]} {[%emt 00:00:12]}
Bg4 {[%clk 00:25:48]} {[%emt 00:00:02]} 6. h3 {[%clk 00:24:41]} {[%emt
00:00:10]} Bh5 {[%clk 00:25:55]} {[%emt 00:00:03]} 7. g4 {[%clk 00:21:46]}
{[%emt 00:03:06]} Bg6 {[%clk 00:26:03]} {[%emt 00:00:01]} 8. Bb5 {[%clk
00:21:02]} {[%emt 00:00:53]} e6 {[%clk 00:26:00]} {[%emt 00:00:14]} 9. Bxc6+
{[%clk 00:20:31]} {[%emt 00:00:41]} bxc6 {[%clk 00:26:07]} {[%emt 00:00:02]} 10.
Ne5 {[%clk 00:20:20]} {[%emt 00:00:21]} c5 {[%clk 00:25:21]} {[%emt 00:00:56]}
11. Nxg6 {[%clk 00:19:42]} {[%emt 00:00:49]} hxg6 {[%clk 00:25:27]} {[%emt
00:00:04]} 12. dxc5 {[%clk 00:18:21]} {[%emt 00:01:30]} Bxc5 {[%clk 00:25:35]}
{[%emt 00:00:02]} 13. Nd2 {[%clk 00:16:01]} {[%emt 00:02:31]} Qf6 {[%clk
00:25:11]} {[%emt 00:00:33]} 14. Ne4 {[%clk 00:15:31]} {[%emt 00:00:40]} Qe7
{[%clk 00:24:33]} {[%emt 00:00:47]} 15. Qd3 {[%clk 00:14:25]} {[%emt 00:01:16]}
a6 {[%clk 00:24:10]} {[%emt 00:00:35]} 16. Qc4 {[%clk 00:13:47]} {[%emt
00:00:46]} Bb6 {[%clk 00:23:39]} {[%emt 00:00:41]} 17. Qc6+ {[%clk 00:13:41]}
{[%emt 00:00:15]} Qd7 {[%clk 00:15:34]} {[%emt 00:08:17]} 18. Qxa8+ {[%clk
00:13:39]} {[%emt 00:00:12]} Qd8 {[%clk 00:12:56]} {[%emt 00:02:48]} 19. Qxa6
{[%clk 00:13:05]} {[%emt 00:00:44]} f5 {[%clk 00:12:16]} {[%emt 00:00:51]} 20.
Qb5+ {[%clk 00:12:31]} {[%emt 00:00:42]} Kf7 {[%clk 00:12:05]} {[%emt
00:00:21]} 21. Ng5+ {[%clk 00:12:32]} {[%emt 00:00:12]} Ke7 {[%clk 00:11:39]}
{[%emt 00:00:27]} 22. Ne4 {[%clk 00:12:10]} {[%emt 00:00:40]} fxe4 {[%clk
00:11:26]} {[%emt 00:00:23]} 23. Bg5+ {[%clk 00:11:57]} {[%emt 00:00:22]} Nf6
{[%clk 00:11:34]} {[%emt 00:00:02]} 24. Qb4+ {[%clk 00:12:05]} {[%emt
00:00:02]} Kf7 {[%clk 00:11:18]} {[%emt 00:00:26]} 25. O-O {[%clk 00:11:35]}
{[%emt 00:00:41]} Qd5 {[%clk 00:10:35]} {[%emt 00:00:52]} 26. Bxf6 {[%clk
00:11:21]} {[%emt 00:00:25]} Kxf6 {[%clk 00:10:24]} {[%emt 00:00:21]} 27. Qc3+
{[%clk 00:10:56]} {[%emt 00:00:29]} Kf7 {[%clk 00:10:12]} {[%emt 00:00:27]} 28.
Rad1 {[%clk 00:10:40]} {[%emt 00:00:25]} Qc5 {[%clk 00:09:35]} {[%emt
00:00:48]} 29. Rd7+ {[%clk 00:10:39]} {[%emt 00:00:11]} Ke8 {[%clk 00:09:19]}
{[%emt 00:00:27]} 30. Qxg7 {[%clk 00:10:33]} {[%emt 00:00:17]} Rf8 {[%clk
00:08:57]} {[%emt 00:00:29]} 31. Rd2 {[%clk 00:09:03]} {[%emt 00:01:39]} e3
{[%clk 00:08:41]} {[%emt 00:00:29]} 32. Qd7# {[%clk 00:09:02]} {[%emt
00:00:10]} 1-0



[ePGN "0.1;DGT LiveChess/2.2.6"]

[Event "MČR družstev mladších žáků 2024"]
[Site "Harrachov, Czech Republic"]
[Date "2024.06.15"]
[Round "4.19"]
[White "Vo Daniel"]
[Black "Velim Vojtech"]
[Result "0-1"]
[TimeControl "25+10"]
[WhiteFideId "23761229"]
[BlackFideId "23749407"]
[WhiteElo "1408"]
[BlackElo "1814"]

1. e4 {[%clk 00:25:18]} {[%emt 00:00:02]} c6 {[%clk 00:25:19]} {[%emt
00:00:01]} 2. d4 {[%clk 00:25:26]} {[%emt 00:00:02]} d5 {[%clk 00:25:28]} 3.
Nc3 {[%clk 00:25:35]} {[%emt 00:00:02]} dxe4 {[%clk 00:25:37]} {[%emt
00:00:01]} 4. Nxe4 {[%clk 00:25:44]} {[%emt 00:00:01]} Bf5 {[%clk 00:25:46]} 5.
Ng3 {[%clk 00:25:52]} {[%emt 00:00:03]} Bg6 {[%clk 00:25:56]} 6. h4 {[%clk
00:26:01]} h6 {[%clk 00:26:04]} {[%emt 00:00:02]} 7. h5 {[%clk 00:26:10]}
{[%emt 00:00:01]} Bh7 {[%clk 00:26:13]} {[%emt 00:00:01]} 8. Nf3 {[%clk
00:26:19]} {[%emt 00:00:01]} Nd7 {[%clk 00:26:22]} {[%emt 00:00:02]} 9. Bd3
{[%clk 00:26:27]} {[%emt 00:00:01]} Bxd3 {[%clk 00:26:30]} {[%emt 00:00:03]} 10.
Qxd3 {[%clk 00:26:36]} Ngf6 {[%clk 00:26:38]} {[%emt 00:00:02]} 11. Bd2 {[%clk
00:26:37]} {[%emt 00:00:09]} e6 {[%clk 00:26:46]} {[%emt 00:00:02]} 12. O-O-O
{[%clk 00:26:39]} {[%emt 00:00:08]} Qc7 {[%emt 00:00:07]} 13. Rhe1 {[%clk
00:26:41]} Bd6 {[%clk 00:26:59]} {[%emt 00:00:07]} 14. Nf5 {[%clk 00:26:29]}
{[%emt 00:00:23]} Bf8 {[%clk 00:26:42]} {[%emt 00:00:27]} 15. Ng3 {[%clk
00:26:31]} {[%emt 00:00:08]} O-O-O {[%clk 00:26:33]} {[%emt 00:00:19]} 16. c4
{[%clk 00:26:01]} {[%emt 00:00:40]} Bd6 {[%clk 00:26:27]} {[%emt 00:00:16]} 17.
Ne4 {[%clk 00:24:52]} {[%emt 00:01:19]} Nxe4 {[%clk 00:26:31]} {[%emt
00:00:06]} 18. Qxe4 {[%clk 00:25:01]} {[%emt 00:00:01]} Nf6 {[%clk 00:26:40]}
19. Qe2 {[%clk 00:25:02]} {[%emt 00:00:09]} c5 {[%clk 00:26:26]} {[%emt
00:00:23]} 20. Kb1 {[%clk 00:24:41]} {[%emt 00:00:32]} Nxh5 {[%clk 00:25:07]}
{[%emt 00:01:28]} 21. Ne5 {[%clk 00:24:01]} {[%emt 00:00:51]} Nf6 {[%clk
00:25:03]} {[%emt 00:00:14]} 22. dxc5 {[%clk 00:22:39]} {[%emt 00:01:32]} Bxe5
{[%clk 00:24:20]} {[%emt 00:00:53]} 23. Qxe5 {[%clk 00:22:37]} {[%emt
00:00:11]} Qxe5 {[%clk 00:24:28]} {[%emt 00:00:03]} 24. Rxe5 {[%clk 00:22:43]}
{[%emt 00:00:04]} Rd4 {[%clk 00:24:36]} {[%emt 00:00:02]} 25. Ree1 {[%clk
00:21:58]} {[%emt 00:00:54]} Rhd8 {[%clk 00:24:38]} {[%emt 00:00:08]} 26. Re2
{[%clk 00:21:59]} {[%emt 00:00:09]} Ne4 {[%clk 00:24:18]} {[%emt 00:00:31]} 27.
Kc2 {[%clk 00:21:57]} {[%emt 00:00:12]} Rxc4+ {[%clk 00:24:19]} {[%emt
00:00:10]} 28. Kb1 {[%clk 00:21:59]} {[%emt 00:00:08]} Nxd2+ {[%clk 00:23:55]}
{[%emt 00:00:33]} 29. Rexd2 {[%clk 00:22:06]} {[%emt 00:00:03]} Rxd2 {[%clk
00:24:03]} {[%emt 00:00:02]} 30. Rxd2 {[%clk 00:22:14]} {[%emt 00:00:01]} Rxc5
{[%clk 00:24:12]} {[%emt 00:00:02]} 31. Rd3 {[%clk 00:21:18]} {[%emt 00:01:06]}
Kc7 {[%clk 00:24:13]} {[%emt 00:00:08]} 32. Rf3 {[%clk 00:21:19]} {[%emt
00:00:09]} Rf5 {[%clk 00:24:21]} {[%emt 00:00:02]} 33. Rc3+ {[%clk 00:21:27]}
{[%emt 00:00:02]} Kd7 {[%clk 00:24:29]} {[%emt 00:00:02]} 34. f3 {[%clk
00:21:12]} {[%emt 00:00:25]} Rg5 {[%clk 00:24:37]} {[%emt 00:00:02]} 35. g4
{[%clk 00:21:21]} {[%emt 00:00:02]} h5 {[%clk 00:24:32]} {[%emt 00:00:16]} 36.
gxh5 {[%clk 00:21:21]} {[%emt 00:00:09]} Rxh5 {[%clk 00:24:38]} {[%emt
00:00:04]} 37. Rd3+ {[%clk 00:21:27]} {[%emt 00:00:04]} Rd5 {[%clk 00:24:46]}
{[%emt 00:00:01]} 38. Ra3 {[%clk 00:21:33]} {[%emt 00:00:05]} a6 {[%clk
00:24:52]} {[%emt 00:00:04]} 39. Rb3 {[%clk 00:21:40]} {[%emt 00:00:02]} b5
{[%clk 00:24:59]} {[%emt 00:00:04]} 40. Ra3 {[%clk 00:21:49]} {[%emt 00:00:01]}
Rd6 {[%clk 00:25:05]} {[%emt 00:00:04]} 41. Kc2 {[%clk 00:21:45]} {[%emt
00:00:14]} e5 {[%clk 00:24:59]} {[%emt 00:00:16]} 42. Re3 {[%clk 00:21:47]}
{[%emt 00:00:08]} Ke6 {[%clk 00:24:49]} {[%emt 00:00:20]} 43. f4 {[%clk
00:21:42]} {[%emt 00:00:15]} Rd5 {[%clk 00:24:54]} {[%emt 00:00:06]} 44. fxe5
{[%clk 00:21:43]} {[%emt 00:00:08]} Rc5+ {[%clk 00:24:46]} {[%emt 00:00:18]} 45.
Kb1 {[%clk 00:21:48]} {[%emt 00:00:06]} a5 {[%clk 00:24:35]} {[%emt 00:00:20]}
46. a4 {[%clk 00:21:42]} {[%emt 00:00:16]} Rxe5 {[%clk 00:23:53]} {[%emt
00:00:51]} 47. Ra3 {[%clk 00:21:29]} {[%emt 00:00:24]} b4 {[%clk 00:23:57]}
{[%emt 00:00:06]} 48. Rg3 {[%clk 00:21:35]} {[%emt 00:00:04]} g5 {[%clk
00:24:00]} {[%emt 00:00:06]} 49. Kc2 {[%clk 00:20:58]} {[%emt 00:00:47]} Kf6
{[%clk 00:24:03]} {[%emt 00:00:08]} 50. Rf3+ {[%clk 00:20:28]} {[%emt
00:00:39]} Kg6 {[%clk 00:24:12]} {[%emt 00:00:02]} 51. Rg3 {[%clk 00:20:37]}
{[%emt 00:00:01]} f5 {[%clk 00:24:09]} {[%emt 00:00:12]} 52. Rd3 {[%clk
00:20:36]} {[%emt 00:00:11]} f4 {[%clk 00:24:17]} {[%emt 00:00:03]} 53. Rd6+
{[%clk 00:20:43]} {[%emt 00:00:02]} Kf5 {[%clk 00:24:26]} 54. Rd8 {[%clk
00:20:51]} {[%emt 00:00:03]} g4 {[%clk 00:24:33]} {[%emt 00:00:04]} 55. Rf8+
{[%clk 00:20:59]} {[%emt 00:00:02]} Ke4 {[%clk 00:24:42]} {[%emt 00:00:01]} 56.
Kd2 {[%clk 00:21:03]} {[%emt 00:00:06]} Kf3 {[%clk 00:24:46]} {[%emt 00:00:05]}
57. Rd8 {[%clk 00:21:08]} {[%emt 00:00:06]} g3 {[%clk 00:24:53]} {[%emt
00:00:04]} 58. Rd3+ {[%clk 00:21:16]} {[%emt 00:00:01]} Kf2 {[%clk 00:25:01]}
{[%emt 00:00:02]} 59. Kc2 {[%clk 00:21:11]} {[%emt 00:00:15]} g2 {[%clk
00:25:07]} {[%emt 00:00:04]} 60. Rd1 {[%clk 00:21:12]} {[%emt 00:00:08]} Re1
{[%clk 00:25:15]} {[%emt 00:00:02]} 61. Rxe1 {[%clk 00:21:18]} {[%emt
00:00:04]} Kxe1 {[%clk 00:25:24]} {[%emt 00:00:02]} 62. b3 {[%clk 00:21:27]}
{[%emt 00:00:01]} g1=Q {[%clk 00:25:31]} {[%emt 00:00:03]} 63. Kb1 {[%clk
00:21:36]} f3 {[%clk 00:25:39]} {[%emt 00:00:03]} 64. Ka2 {[%clk 00:21:44]}
{[%emt 00:00:02]} f2 {[%clk 00:25:46]} {[%emt 00:00:03]} 65. Ka1 {[%clk
00:21:52]} {[%emt 00:00:02]} Kd2+ {[%clk 00:25:44]} {[%emt 00:00:12]} 66. Ka2
{[%clk 00:22:01]} {[%emt 00:00:01]} f1=Q {[%clk 00:25:49]} {[%emt 00:00:05]} 67.
Kb2 {[%clk 00:22:10]} {[%emt 00:00:01]} Qff2 {[%clk 00:25:56]} {[%emt
00:00:03]} 68. Ka2 {[%clk 00:22:16]} {[%emt 00:00:04]} Kc3# {[%clk 00:26:04]}
{[%emt 00:00:02]} 0-1



[ePGN "0.1;DGT LiveChess/2.2.6"]

[Event "MČR družstev mladších žáků 2024"]
[Site "Harrachov, Czech Republic"]
[Date "2024.06.15"]
[Round "4.2"]
[White "Artamonov Mikhail"]
[Black "Walder Hugo"]
[Result "0-1"]
[TimeControl "25+10"]
[WhiteFideId "23732946"]
[BlackFideId "23743360"]
[WhiteElo "1515"]
[BlackElo "1489"]

1. e4 {[%clk 00:25:16]} {[%emt 00:00:03]} e5 {[%clk 00:25:20]} {[%emt
00:00:01]} 2. Nf3 {[%clk 00:25:22]} {[%emt 00:00:05]} Nc6 {[%clk 00:25:28]} 3.
d4 {[%clk 00:25:29]} {[%emt 00:00:03]} exd4 {[%clk 00:25:37]} {[%emt 00:00:02]}
4. c3 {[%clk 00:25:36]} {[%emt 00:00:02]} dxc3 {[%clk 00:25:40]} {[%emt
00:00:06]} 5. Bc4 {[%clk 00:25:44]} {[%emt 00:00:02]} Be7 {[%clk 00:24:41]}
{[%emt 00:01:09]} 6. Qd5 {[%clk 00:25:53]} {[%emt 00:00:02]} Nh6 {[%clk
00:23:23]} {[%emt 00:01:27]} 7. Bxh6 {[%clk 00:26:01]} {[%emt 00:00:02]} O-O
{[%clk 00:23:14]} {[%emt 00:00:19]} 8. Nxc3 {[%clk 00:14:54]} {[%emt 00:11:16]}
gxh6 {[%clk 00:23:16]} {[%emt 00:00:09]} 9. O-O {[%clk 00:13:30]} {[%emt
00:01:34]} d6 {[%clk 00:21:46]} {[%emt 00:01:40]} 10. Qh5 {[%clk 00:13:03]}
{[%emt 00:00:35]} Bf6 {[%clk 00:18:29]} {[%emt 00:03:27]} 11. Qxh6 {[%clk
00:12:26]} {[%emt 00:00:49]} Bg7 {[%emt 00:00:04]} 12. Qh5 {[%clk 00:12:25]}
{[%emt 00:00:08]} h6 {[%clk 00:18:39]} {[%emt 00:00:09]} 13. Nd5 {[%clk
00:07:39]} {[%emt 00:04:56]} Be6 {[%clk 00:18:43]} {[%emt 00:00:06]} 14. Bd3
{[%clk 00:06:43]} {[%emt 00:01:04]} Ne5 {[%emt 00:00:29]} 15. Nxe5 {[%clk
00:06:38]} {[%emt 00:00:13]} dxe5 {[%clk 00:18:36]} {[%emt 00:00:02]} 16. f4
{[%clk 00:05:15]} {[%emt 00:01:33]} exf4 {[%clk 00:14:05]} {[%emt 00:04:41]} 17.
Nxf4 {[%clk 00:03:33]} {[%emt 00:01:51]} Qg5 {[%clk 00:13:53]} {[%emt
00:00:23]} 18. Qe2 {[%clk 00:02:23]} {[%emt 00:00:52]} Bd4+ {[%clk 00:13:12]}
{[%emt 00:01:19]} 19. Kh1 {[%clk 00:02:29]} {[%emt 00:00:04]} Bg4 {[%clk
00:13:15]} {[%emt 00:00:08]} 20. Qc2 {[%clk 00:02:05]} {[%emt 00:00:34]} c6
{[%clk 00:12:33]} {[%emt 00:00:52]} 21. Qc4 {[%clk 00:01:42]} {[%emt 00:00:34]}
Be5 {[%clk 00:12:24]} {[%emt 00:00:18]} 22. Qc1 {[%clk 00:01:36]} {[%emt
00:00:16]} Rad8 {[%clk 00:11:39]} {[%emt 00:00:54]} 23. Bc2 {[%clk 00:01:34]}
{[%emt 00:00:14]} Kh8 {[%clk 00:09:31]} {[%emt 00:02:17]} 24. Nd3 {[%clk
00:01:17]} {[%emt 00:00:27]} Qxc1 {[%clk 00:08:35]} {[%emt 00:01:06]} 25. Raxc1
{[%clk 00:01:26]} {[%emt 00:00:01]} Bg7 {[%clk 00:07:50]} {[%emt 00:00:54]} 26.
Rce1 {[%clk 00:01:20]} {[%emt 00:00:17]} Be6 {[%clk 00:07:21]} {[%emt
00:00:38]} 27. b3 {[%clk 00:01:16]} {[%emt 00:00:15]} Bc3 {[%clk 00:06:34]}
{[%emt 00:00:57]} 28. Re3 {[%clk 00:01:06]} {[%emt 00:00:20]} Bd2 {[%clk
00:05:10]} {[%emt 00:01:34]} 29. Rg3 {[%clk 00:00:52]} {[%emt 00:00:22]} Bg5
{[%clk 00:04:47]} {[%emt 00:00:36]} 30. Ne5 {[%clk 00:00:34]} {[%emt 00:00:29]}
Kh7 {[%clk 00:04:19]} {[%emt 00:00:38]} 31. Nf3 {[%clk 00:00:39]} {[%emt
00:00:05]} Bf4 {[%clk 00:04:14]} {[%emt 00:00:15]} 32. e5+ {[%clk 00:00:37]}
{[%emt 00:00:12]} Kh8 {[%clk 00:04:29]} {[%emt 00:00:38]} 33. Kg1 {[%clk
00:01:12]} {[%emt 00:00:35]} Bxg3 {[%clk 00:04:38]} {[%emt 00:00:01]} 34. hxg3
{[%emt 00:00:02]} Bg4 {[%clk 00:04:12]} {[%emt 00:00:34]} 35. Nh4 {[%clk
00:01:13]} {[%emt 00:00:19]} Kg7 {[%clk 00:03:57]} {[%emt 00:00:25]} 36. Bf5
{[%clk 00:00:50]} {[%emt 00:00:32]} Bxf5 {[%clk 00:03:59]} {[%emt 00:00:09]} 37.
Nxf5+ {[%clk 00:00:59]} {[%emt 00:00:01]} Kh7 {[%clk 00:04:05]} {[%emt
00:00:04]} 38. Nd6 {[%clk 00:01:03]} {[%emt 00:00:07]} Rd7 {[%clk 00:04:04]}
{[%emt 00:00:10]} 39. Rf6 {[%clk 00:00:56]} {[%emt 00:00:18]} Re7 {[%clk
00:03:45]} {[%emt 00:00:29]} 40. Rf5 {[%clk 00:00:48]} {[%emt 00:00:18]} b6
{[%clk 00:03:10]} {[%emt 00:00:45]} 41. Kf2 {[%clk 00:00:53]} {[%emt 00:00:05]}
c5 {[%clk 00:02:42]} {[%emt 00:00:36]} 42. Kf3 {[%clk 00:00:57]} {[%emt
00:00:08]} a6 {[%clk 00:02:14]} {[%emt 00:00:38]} 43. Kf4 {[%clk 00:01:01]}
{[%emt 00:00:07]} Re6 {[%clk 00:01:43]} {[%emt 00:00:40]} 44. g4 {[%clk
00:00:39]} {[%emt 00:00:33]} f6 {[%clk 00:01:50]} {[%emt 00:00:03]} 45. Nc4
{[%clk 00:00:24]} {[%emt 00:00:25]} fxe5+ {[%clk 00:01:56]} {[%emt 00:00:04]}
46. Ke4 {[%clk 00:00:33]} Rd8 {[%clk 00:01:30]} {[%emt 00:00:36]} 47. Rxe5
{[%emt 00:00:27]} Rd4+ {[%clk 00:01:33]} {[%emt 00:00:06]} 48. Kf5 {[%clk
00:00:19]} {[%emt 00:00:09]} Rxe5+ {[%clk 00:01:41]} 49. Kxe5 {[%clk 00:00:23]}
{[%emt 00:00:07]} Rxg4 {[%clk 00:01:43]} {[%emt 00:00:08]} 50. Nxb6 {[%clk
00:00:24]} {[%emt 00:00:09]} Rxg2 {[%clk 00:01:52]} {[%emt 00:00:02]} 51. Na4
{[%clk 00:00:31]} {[%emt 00:00:02]} h5 {[%clk 00:01:58]} {[%emt 00:00:03]} 52.
Nxc5 {[%clk 00:00:38]} {[%emt 00:00:04]} h4 {[%clk 00:02:07]} {[%emt 00:00:01]}
53. Nd3 {[%clk 00:00:38]} {[%emt 00:00:10]} h3 {[%clk 00:02:12]} {[%emt
00:00:05]} 54. Nf4 {[%clk 00:00:45]} {[%emt 00:00:03]} h2 {[%clk 00:02:16]}
{[%emt 00:00:06]} 55. Nxg2 {[%clk 00:00:54]} {[%emt 00:00:01]} h1=Q {[%clk
00:02:24]} {[%emt 00:00:02]} 56. Ne3 {[%clk 00:00:55]} {[%emt 00:00:09]} Qh2+
{[%clk 00:02:19]} {[%emt 00:00:15]} 57. Kd4 {[%clk 00:01:03]} {[%emt 00:00:02]}
Qxa2 {[%clk 00:02:26]} {[%emt 00:00:02]} 58. Kc3 {[%clk 00:01:12]} {[%emt
00:00:02]} Kg6 {[%clk 00:02:30]} {[%emt 00:00:07]} 59. Nc4 {[%clk 00:01:16]}
{[%emt 00:00:06]} Qe2 {[%clk 00:02:28]} {[%emt 00:00:09]} 60. Kb4 {[%clk
00:01:23]} {[%emt 00:00:06]} Kf6 {[%clk 00:02:34]} {[%emt 00:00:04]} 61. Na5
{[%clk 00:01:07]} {[%emt 00:00:26]} Qb5+ {[%clk 00:02:41]} {[%emt 00:00:03]}
0-1



[ePGN "0.1;DGT LiveChess/2.2.6"]

[Event "MČR družstev mladších žáků 2024"]
[Site "Harrachov, Czech Republic"]
[Date "2024.06.15"]
[Round "4.20"]
[White "Kala Jakub"]
[Black "Kubat Jonas"]
[Result "0-1"]
[TimeControl "25+10"]
[WhiteFideId "23753897"]
[BlackFideId "23764830"]
[WhiteElo "1657"]
[BlackElo "1246"]

1. Nf3 {[%clk 00:25:18]} {[%emt 00:00:02]} d5 {[%clk 00:25:14]} {[%emt
00:00:06]} 2. c4 {[%clk 00:25:27]} {[%emt 00:00:01]} c6 {[%clk 00:25:14]}
{[%emt 00:00:10]} 3. e3 {[%clk 00:25:32]} {[%emt 00:00:05]} Nf6 {[%clk
00:25:14]} {[%emt 00:00:10]} 4. Qc2 {[%clk 00:25:25]} {[%emt 00:00:17]} Bg4
{[%clk 00:24:54]} {[%emt 00:00:30]} 5. Nc3 {[%clk 00:25:09]} {[%emt 00:00:27]}
Bxf3 {[%clk 00:24:26]} {[%emt 00:00:38]} 6. gxf3 {[%clk 00:25:14]} {[%emt
00:00:04]} e6 {[%clk 00:24:19]} {[%emt 00:00:17]} 7. b3 {[%clk 00:25:15]}
{[%emt 00:00:09]} d4 {[%clk 00:24:27]} {[%emt 00:00:02]} 8. Ne4 {[%clk
00:24:27]} {[%emt 00:00:58]} dxe3 {[%clk 00:23:36]} {[%emt 00:01:01]} 9. fxe3
{[%clk 00:23:04]} {[%emt 00:01:33]} Nbd7 {[%clk 00:23:24]} {[%emt 00:00:22]} 10.
Bb2 {[%clk 00:22:19]} {[%emt 00:00:55]} Nxe4 {[%clk 00:21:50]} {[%emt
00:01:44]} 11. Qxe4 {[%clk 00:22:16]} {[%emt 00:00:14]} Nc5 {[%clk 00:21:35]}
{[%emt 00:00:24]} 12. Qd4 {[%clk 00:20:52]} {[%emt 00:01:34]} Qa5 {[%clk
00:20:35]} {[%emt 00:01:10]} 13. Qc3 {[%clk 00:18:58]} {[%emt 00:02:05]} Qb6
{[%clk 00:18:42]} {[%emt 00:02:03]} 14. O-O-O {[%clk 00:15:15]} {[%emt
00:03:53]} O-O-O {[%clk 00:16:36]} {[%emt 00:02:16]} 15. d4 {[%clk 00:14:01]}
{[%emt 00:01:23]} Nd7 {[%clk 00:16:01]} {[%emt 00:00:45]} 16. Kb1 {[%clk
00:13:04]} {[%emt 00:01:07]} Be7 {[%clk 00:14:34]} {[%emt 00:01:37]} 17. Bh3
{[%clk 00:11:56]} {[%emt 00:01:19]} Kb8 {[%clk 00:14:07]} {[%emt 00:00:36]} 18.
e4 {[%clk 00:11:19]} {[%emt 00:00:47]} c5 {[%clk 00:12:51]} {[%emt 00:01:26]}
19. d5 {[%clk 00:10:33]} {[%emt 00:00:56]} Bf6 {[%clk 00:12:21]} {[%emt
00:00:41]} 20. Qe3 {[%clk 00:09:31]} {[%emt 00:01:12]} Bxb2 {[%clk 00:11:47]}
{[%emt 00:00:43]} 21. Kxb2 {[%clk 00:09:39]} {[%emt 00:00:02]} Ne5 {[%clk
00:11:56]} {[%emt 00:00:02]} 22. Qf4 {[%clk 00:08:03]} {[%emt 00:01:45]} Qc7
{[%clk 00:11:08]} {[%emt 00:00:57]} 23. Qe3 {[%clk 00:06:54]} {[%emt 00:01:17]}
Qb6 {[%clk 00:11:15]} {[%emt 00:00:06]} 24. Qc3 {[%clk 00:06:45]} {[%emt
00:00:19]} Ng6 {[%clk 00:07:17]} {[%emt 00:04:08]} 25. Qxg7 {[%clk 00:04:01]}
{[%emt 00:02:54]} exd5 {[%clk 00:07:02]} {[%emt 00:00:25]} 26. Rxd5 {[%clk
00:03:30]} {[%emt 00:00:42]} Rxd5 {[%clk 00:07:09]} {[%emt 00:00:02]} 27. exd5
{[%clk 00:02:51]} {[%emt 00:00:49]} Re8 {[%clk 00:07:11]} {[%emt 00:00:08]} 28.
Rc1 {[%clk 00:02:27]} {[%emt 00:00:34]} Nf4 {[%clk 00:06:22]} {[%emt 00:01:00]}
29. Qg3 {[%clk 00:01:22]} {[%emt 00:01:13]} Qd6 {[%clk 00:06:30]} {[%emt
00:00:03]} 30. Bf5 {[%clk 00:00:49]} {[%emt 00:00:43]} Qe5+ {[%clk 00:06:02]}
{[%emt 00:00:38]} 31. Ka3 {[%clk 00:00:16]} {[%emt 00:00:44]} Qxf5 {[%clk
00:06:01]} {[%emt 00:00:11]} 32. Re1 {[%clk 00:00:25]} {[%emt 00:00:01]} Rxe1
{[%clk 00:04:53]} {[%emt 00:01:18]} 33. Qxe1 {[%clk 00:00:34]} {[%emt
00:00:01]} Nd3 {[%clk 00:04:57]} {[%emt 00:00:04]} 34. Qe8+ {[%clk 00:00:35]}
{[%emt 00:00:10]} Qc8 {[%clk 00:04:22]} {[%emt 00:00:45]} 35. Qxf7 {[%clk
00:00:39]} {[%emt 00:00:07]} b6 {[%clk 00:04:28]} {[%emt 00:00:03]} 36. b4
{[%clk 00:00:18]} {[%emt 00:00:31]} cxb4+ {[%clk 00:04:15]} {[%emt 00:00:22]}
37. Kb3 {[%clk 00:00:27]} {[%emt 00:00:02]} b5 {[%clk 00:04:10]} {[%emt
00:00:15]} 38. d6 {[%clk 00:00:24]} {[%emt 00:00:13]} Qxc4+ {[%clk 00:03:46]}
{[%emt 00:00:35]} 39. Qxc4 {[%clk 00:00:32]} bxc4+ {[%clk 00:03:54]} {[%emt
00:00:01]} 40. Kxc4 {[%clk 00:00:41]} {[%emt 00:00:02]} Ne5+ {[%clk 00:04:03]}
41. Kxb4 {[%clk 00:00:42]} {[%emt 00:00:09]} Nxf3 {[%clk 00:04:12]} {[%emt
00:00:01]} 42. h3 {[%clk 00:00:21]} {[%emt 00:00:32]} h5 {[%clk 00:04:20]}
{[%emt 00:00:01]} 43. Kc5 {[%clk 00:00:22]} {[%emt 00:00:10]} Kc8 {[%clk
00:04:14]} {[%emt 00:00:15]} 44. Kc6 {[%clk 00:00:23]} {[%emt 00:00:09]} h4
{[%clk 00:04:17]} {[%emt 00:00:07]} 45. d7+ {[%clk 00:00:23]} {[%emt 00:00:10]}
Kd8 {[%clk 00:04:26]} {[%emt 00:00:02]} 46. Kb7 {[%clk 00:00:31]} {[%emt
00:00:02]} Ng5 {[%clk 00:04:23]} {[%emt 00:00:12]} 47. Kxa7 {[%clk 00:00:39]}
{[%emt 00:00:02]} Nxh3 {[%clk 00:04:32]} {[%emt 00:00:02]} 48. a4 {[%clk
00:00:33]} {[%emt 00:00:15]} Nf4 {[%clk 00:04:38]} {[%emt 00:00:05]} 49. a5
{[%clk 00:00:39]} {[%emt 00:00:04]} Kxd7 {[%clk 00:04:34]} {[%emt 00:00:13]} 50.
a6 {[%clk 00:00:26]} {[%emt 00:00:24]} Nd5 {[%clk 00:04:42]} {[%emt 00:00:02]}
51. Kb7 {[%clk 00:00:31]} {[%emt 00:00:05]} Nc7 {[%clk 00:04:48]} {[%emt
00:00:04]} 0-1



[ePGN "0.1;DGT LiveChess/2.2.6"]